Vendor,Expense Type,Payment Date,Amount,Notes
KCI Print Services,Business Cards,1/14/2020,25.0000,
NATIONAL ASSOCIATION SECRETARY OF STATE,Conference,1/14/2020,500.0000,
CARDINAL OFFICE PRODUCTS INC,Office Supplies / Equipment,1/21/2020,80.8800,
Commonwealth Office of Technology,utilization,1/21/2020,7988.8000,
Commonwealth Office of Technology,utilization,1/21/2020,8215.4000,
Commonwealth Office of Technology,utilization,1/21/2020,8061.4000,
Commonwealth Office of Technology,utilization	,1/21/2020,4981.8500,
Commonwealth Office of Technology,utilization	,1/21/2020,8065.2000,
Commonwealth Office of Technology,utilization	,1/21/2020,5458.8500,
Commonwealth Office of Technology,utilization	,1/21/2020,4383.8500,
KYTC Print Services,Envelopes,1/21/2020,1800.0000,
Gov Services Center,Personnel Services,1/7/2020,356.9600,
Commonwealth Office of Technology,utilization,1/8/2020,3088.2900,
Commonwealth Office of Technology,Pass through,1/8/2020,200.0000,
"Finance, Facilities",Employee ID Badges,1/30/2020,16.0000,
"Finance, Postal Services",postage,1/30/2020,6.6000,
HIGHBRIDGE SPRING WATER,Water Coolers,1/3/2020,137.9700,
DELL MARKETING L P,Office Equipment,1/31/2020,9070.7800,
NATIONAL ASSOCIATION SECRETARY OF STATE,Conference,1/14/2020,500.0000,
Mapme,Inactive Voter Map,1/21/2020,69.0000,
Commonwealth Office of Technology,utilization,1/21/2020,8087.2000,
Commonwealth Office of Technology,utilization,1/21/2020,8011.4000,
Commonwealth Office of Technology,utilization,1/21/2020,3440.3500,
"Finance, Facilities Management","rent, Capitol offices",1/2/2020,7134.6000,
PAXTON MEDIA GROUP LLC,Subscription,1/2/2020,31.1400,
Mary Sue Helm,Travel Reimbursement,1/7/2020,1677.9000,
FRANKFORT ELECTRIC AND WATER PLANT BOARD,utilization,1/30/2020,202.2600,
KCI Print Services,Letterhead,1/30/2020,526.8800,
NATIONAL ASSOCIATION SECRETARY OF STATE,Conference,1/14/2020,500.0000,
WEST PUBLISHING CORPORATION,Subscription,1/17/2020,459.4400,
Commonwealth Office of Technology,utilization,1/21/2020,5458.8500,
Commonwealth Office of Technology,utilization,1/21/2020,5458.8500,
"Finance, Facilities Management","rent, Capitol offices",1/2/2020,10266.8700,
OFFICE DEPOT,Nameplates,1/22/2020,31.9800,
DUPLICATOR SALES AND SERVICE,Copy Charges,1/30/2020,61.3300,
KCI Print Services,Office Supplies,1/30/2020,295.6500,
Finance,eMARS BILLING - FY20 - 3rd QTR,1/3/2020,2275.0000,
KCI Print Services,Office Supplies,1/14/2020,368.2200,
DUPLICATOR SALES AND SERVICE,Copy Charges,1/14/2020,3.9000,
NATIONAL ASSOCIATION SECRETARY OF STATE,Conference,1/14/2020,500.0000,
AT&T,Wireless Service - Dec,1/17/2020,518.3500,
Commonwealth Office of Technology,utilization,1/21/2020,6230.2000,
Commonwealth Office of Technology,utilization,1/21/2020,5710.8500,
Commonwealth Office of Technology,utilization,1/21/2020,2508.6000,
Commonwealth Office of Technology,utilization,1/21/2020,4941.1000,
"Finance, Facilities Management","Utilities, Capitol Annex",1/2/2020,633.0400,
"Finance, Facilities Management","utilities, Capitol",1/2/2020,5013.7000,
SHRED-IT US JV LLC,Services,1/2/2020,665.5900,
"Matthew Bender & Company, Inc.",Ky Business Org Laws & Rules,1/8/2020,2750.0000,
OFFICE DEPOT,Nameplates,1/22/2020,15.9900,
CARDINAL OFFICE PRODUCTS INC,Office Supplies / Equipment,1/22/2020,167.4300,
STAPLES INC. & SUBSIDIARIES,Land Office Copies,1/22/2020,20.6400,
SHRED-IT US JV LLC,Services,1/30/2020,235.0400,
KCI Print Services,Letterhead,1/30/2020,526.8800,
Office Depot,Office Equipment,1/21/2020,263.5800,
Commonwealth Office of Technology,utilization,1/21/2020,5458.8500,
Commonwealth Office of Technology,utilization,1/21/2020,7982.2000,
Commonwealth Office of Technology,utilization,1/21/2020,8320.8000,
Commonwealth Office of Technology,utilization,1/21/2020,5812.8000,
"Finance, Facilities Management","utilities, Capitol",1/2/2020,3484.0900,
DUPLICATOR SALES AND SERVICE,Copy Charges,1/2/2020,61.1200,
Commonwealth Office of Technology,Pass through,1/8/2020,408.2400,
Commonwealth Office of Technology,Pass through,1/8/2020,481.6800,
XEROX CORPORATION,Copy Charges,1/30/2020,95.9300,
American City Business Journals INC,Subscription,1/17/2020,95.4000,
Commonwealth Office of Technology,utilization,1/21/2020,7988.8000,
Commonwealth Office of Technology,utilization,1/21/2020,4942.6000,
Commonwealth Office of Technology,utilization,1/21/2020,5402.8500,
Commonwealth Office of Technology,utilization,1/21/2020,8065.2000,
Commonwealth Office of Technology,utilization,1/21/2020,2483.1500,
Commonwealth Office of Technology,utilization,1/21/2020,5812.8000,
KYTC Print Services,Envelopes,1/23/2020,270.0000,
FRANKFORT ELECTRIC AND WATER PLANT BOARD,utilization,1/30/2020,193.4200,
KCI Print Services,Ambassador Certificates,1/30/2020,198.4400,
XEROX CORPORATION,Copy Charges,1/3/2020,79.7800,
"Finance, Postal Services",postage,1/3/2020,5.5000,
KYTC Print Services,Envelopes,1/3/2020,2380.0000,
KHRIS,Debt Services,1/9/2020,631.9600,
KCI Print Services,Certificates,1/14/2020,266.4400,
KENTUCKY INTERACTIVE LLC,banking fees,1/14/2020,4830.0400,
Commonwealth Office of Technology,utilization,1/21/2020,8087.2000,
Commonwealth Office of Technology,utilization,1/21/2020,4982.1500,
"Finance, Facilities Management","rent, Capitol Annex office",1/2/2020,1351.3600,
"Finance, Postal Services",postage,1/7/2020,14972.3300,
KYTC Print Services,Envelopes,1/22/2020,2122.5000,
DUPLICATOR SALES AND SERVICE,Copy Charges,1/30/2020,29.0200,
BARBARA GILREATH,Engraving,1/3/2020,10.0000,
IMAGE EXPRESS INC,microfilm imaging,1/17/2020,307.8500,
GoDaddy,Office Essentials Renewal,1/21/2020,63.4700,
Commonwealth Office of Technology,utilization,1/21/2020,2483.1500,
Commonwealth Office of Technology,utilization,1/21/2020,2506.9500,
DUPLICATOR SALES AND SERVICE,Copy Charges,1/2/2020,27.7800,
DUPLICATOR SALES AND SERVICE,Copy Charges,1/2/2020,49.4500,
THE COURIER-JOURNAL INC.,Subscription,1/2/2020,78.0000,
OFFICE THREE SIXTY INC,Office Supplies,1/22/2020,36.0400,
THE COURIER-JOURNAL INC.,Subscription,1/30/2020,78.0000,
"Finance, Fleet Services",carpool-rental,1/6/2020,407.4600,
